Cogmind - Beta 13 @@@ ROGUE MODE // 2024.05.16 @ 16:01:40 Player: anthonyiye Result: Destroyed by S-27 Virus with Autogun Performance ------------- Evolutions (4) 2000 Regions Visited (14) 2800 Robots Destroyed (147) 735 Value Destroyed (5131) 5131 Prototype IDs (14) 280 Alien Tech Used (1) 200 Bonus (646) 646 TOTAL SCORE: 11792 Bonus ------- High Alert Combat Kills 34 Follower Combat Kills 254 Entered Garrisons 200 Met Data Miner 300 Friendly Fire -142 Cogmind --------- Core Integrity 0/850 Matter 300/300 Energy 98/100 System Corruption 1% Temperature Cool (0) Movement Walking (120) Location -6/Garrison Parts ------- > --- POWER (2) -------- (None) > --- PROPULSION (4) --- Armored Leg Armored Leg Armored Leg > --- UTILITY (6) ------ Advanced Heat Sink Advanced Heat Sink Advanced Heat Sink Improved Signal Interpreter > --- WEAPON (3) ------- (None) > --- INVENTORY (5) ---- Light Fission Core Improved Sensor Array Advanced Signal Interpreter Advanced Signal Interpreter Remote Datajack Peak State ------------ > --- POWER ------------ Light Fission Core Neutrino Core > --- PROPULSION ------- Armored Leg Armored Leg Armored Leg Enhanced Flexi-carbon Leg > --- UTILITY ---------- High-capacity Storage Unit Structural Scanner Improved Sensor Array Improved Signal Interpreter Light Regenerative Plating Hacking Suite > --- WEAPON ----------- Flak Gun Heavy Flak Cannon Makeshift Axe > --- INVENTORY -------- Light Nuclear Core Fission Core Improved Medium Treads Improved Medium Treads Armored Leg Armored Leg Improved Heat Sink Advanced Heat Sink Huge Storage Unit Enhanced Optical Array Improved Signal Interpreter Advanced Signal Interpreter Transmission Jammer Long-range Tractor Beam Proton Cannon Gauss Rifle KE Penetrator Missile Launcher Remote Datajack Power Maul [Rating: 71] Favorites ----------- Power Micro Nuclear Core Engine Improved Ion Engine Power Core Micro Nuclear Core Reactor Antimatter Reactor Propulsion Light Treads Treads Light Treads Leg Armored Leg Wheel Armored Huge Wheel Utility High-capacity Storage Unit Device Improved Heat Sink Storage High-capacity Storage Unit Processor Improved Signal Interpreter Hackware Hacking Suite Protection Hardened Medium Armor Plating Weapon Flak Gun Energy Gun Field Laser Energy Cannon Heavy Particle Cannon Ballistic Gun Flak Gun Ballistic Cannon Heavy Flak Cannon Launcher Missile Launcher Impact Weapon Power Maul Slashing Weapon Makeshift Axe Build | -11 -10 -10 -9 -9 -9 -8 -8 -7 -7 -7 -7 -6 -6 -6 ------- Run | Yrd Mat Min Mat Min Exi Min Mat Fac Low Low Dat Pro Fac Gar Slots Evolved 8 | . . . 2 . . . 2 2 . . . . 2 . Power 1 | . . . . . . . . 1 . . . . . . Propulsion 2 | . . . . . . . 2 . . . . . . . Utility 4 | . . . 2 . . . . . . . . . 2 . Weapon 1 | . . . . . . . . 1 . . . . . . Parts Attached 174 | 6 6 6 15 3 2 . 24 30 12 8 . 21 22 19 Power 19 | 1 . . 1 1 . . 2 1 3 2 . 2 4 2 Engine 6 | 1 . . 1 1 . . . 1 1 . . 1 . . Core 12 | . . . . . . . 2 . 2 2 . . 4 2 Reactor 1 | . . . . . . . . . . . . 1 . . Propulsion 50 | 2 . 2 4 1 . . 13 9 3 1 . 3 7 5 Treads 32 | 2 . . 4 1 . . 13 9 2 1 . . . . Leg 14 | . . . . . . . . . . . . 2 7 5 Wheel 4 | . . 2 . . . . . . 1 . . 1 . . Hover . | . . . . . . . . . . . . . . . Flight . | . . . . . . . . . . . . . . . Utility 47 | 1 3 2 3 1 2 . 6 6 4 2 . 5 7 5 Device 16 | . 1 1 1 . . . 2 1 1 . . 3 2 4 Storage 5 | 1 2 . . . 1 . . 1 . . . . . . Processor 3 | . . . 1 . . . . . 1 . . . 1 . Hackware 1 | . . . . . . . . . . . . . 1 . Protection 22 | . . 1 1 1 1 . 4 4 2 2 . 2 3 1 Artifact . | . . . . . . . . . . . . . . . Weapon 58 | 2 3 2 7 . . . 3 14 2 3 . 11 4 7 Energy Gun 8 | 1 . . 5 . . . 1 1 . . . . . . Energy Cannon 2 | . . . . . . . 1 . . . . . . 1 Ballistic Gun 29 | 1 3 . 2 . . . . 10 1 3 . 3 2 4 Ballistic Cannon 1 | . . . . . . . . . . . . . 1 . Launcher 5 | . . . . . . . . . . . . 4 . 1 Special Weapon . | . . . . . . . . . . . . . . . Impact Weapon 11 | . . 2 . . . . 1 3 1 . . 3 . 1 Slashing Weapon 2 | . . . . . . . . . . . . 1 1 . Piercing Weapon . | . . . . . . . . . . . . . . . Special Melee Weapon . | . . . . . . . . . . . . . . . Unidentified Prototypes 2 | . . . . . . . . . . . . 2 . . Corrupted Parts 6 | . . 3 . . . . . . 2 . . 1 . . System Corruption 51 | . . 23 . . . . . . 19 . . 9 . . Parts Lost 77 | . 1 2 4 . . . 8 7 11 . . 11 8 25 Power 12 | . . . 1 . . . 1 1 1 . . 2 2 4 Propulsion 22 | . . 1 . . . . 3 3 5 . . 4 . 6 Utility 19 | . . . . . . . 3 1 3 . . 3 4 5 Weapon 24 | . 1 1 3 . . . 1 2 2 . . 2 2 10 Highest Loss Streak 19 | . 1 1 2 . . . 2 1 6 . . 4 3 19 To Critical Strikes 1 | . . . . . . . . 1 . . . . . . Average Slot Usage (%) 88 | . 91 96 87 100 95 88 89 97 85 80 71 70 89 74 Engine 5 | . 14 14 10 11 11 11 4 5 2 . . 3 2 . Core 4 | . . . . . . . 4 7 8 15 15 2 4 7 Reactor 1 | . . . . . . . . . . . . 5 3 . Treads 17 | . 28 14 20 22 22 22 35 29 25 12 15 1 . . Leg 5 | . . . . . . . . . . . . 10 20 24 Wheel 1 | . . 12 1 . . . . . 1 7 7 2 . . Device 9 | . 6 11 6 11 7 . 2 13 11 7 7 7 12 10 Storage 8 | . 14 14 11 11 11 11 9 6 7 7 7 7 6 6 Processor 4 | . . . 6 11 11 11 2 . . 7 7 7 5 6 Protection 6 | . . . 7 11 10 11 12 8 5 6 7 3 5 5 Energy Gun 4 | . 12 . 14 22 22 22 12 . . . . . . . Ballistic Gun 11 | . 15 22 1 . . . . 21 8 14 2 11 13 3 Impact Weapon 2 | . . 4 6 . . . 1 . 10 . . 2 . . Naked Turns . | . . . . . . . . . . . . . . . Heaviest Build 234 | 11 48 56 60 62 218 218 226 234 82 88 84 89 88 92 Greatest Support 112 | 40 40 40 40 40 40 40 112 88 91 28 28 43 76 64 Greatest Overweight (x) 21 | . 1 2 2 1 5 5 2 2 2 3 2 21 2 1 Average Overweight (x) 1 | . . 1 1 1 1 5 1 . . 2 2 1 1 . Largest Inventory Capacity 35 | 8 20 20 20 20 35 35 35 35 20 20 20 20 20 20 Average Capacity 21 | 7 13 20 20 20 25 35 35 20 20 20 20 20 20 19 Most Carried 35 | 5 10 18 20 20 22 22 35 34 20 20 20 20 20 20 Average Carried 18 | 4 6 13 18 19 20 22 32 19 18 18 19 15 19 15 Final Capacity 35 | 8 20 20 20 20 35 35 35 20 20 20 20 20 20 5 Final Carried 33 | 5 10 18 18 20 22 22 33 20 16 18 20 15 20 5 Class Distribution -------------------- 28% | Mutant 25% | Scavenger-Mutant 15% | Scavenger-Tank 10% | Hauler-Mutant 9% | Scavenger-Skirmisher 5% | Scavenger-Assassin Dominant Class ---------------- Mutant | -10/Materials Mutant | -10/Mines Scavenger-Mutant | -9/Materials Scavenger-Mutant | -9/Mines Scavenger-Mutant | -9/Exiles Hauler-Mutant | -8/Mines Hauler-Mutant | -8/Materials Scavenger-Tank | -7/Factory Scavenger-Mutant | -7/Lower Caves Scavenger-Tank | -7/Lower Caves Scavenger-Mutant | -7/Data Miner Mutant | -6/Proximity Caves Scavenger-Skirmisher | -6/Factory Mutant | -6/Garrison Resources | -11 -10 -10 -9 -9 -9 -8 -8 -7 -7 -7 -7 -6 -6 -6 ----------- Run | Yrd Mat Min Mat Min Exi Min Mat Fac Low Low Dat Pro Fac Gar Matter Collected 3944 | 168 105 210 177 30 . . 225 1285 325 235 . 401 494 289 Remotely . | . . . . . . . . . . . . . . . Salvage Created 4946 | . 138 181 642 94 . . 1245 1038 485 85 . 314 457 267 Parts 251 | . 7 12 41 4 . . 48 63 25 2 . 13 27 9 Haulers Intercepted 4 | . . . 2 . . . 1 1 . . . . . . Recyclers Shooed 4 | . . . 1 . . . . 1 . . . . 2 . Parts Field Recycled . | . . . . . . . . . . . . . . . Retrieved Matter . | . . . . . . . . . . . . . . . Parts Self-Destructed 39 | . . . . . . . . . 21 4 . 14 . . Prevented 6 | . . . . . . . . . 4 . . 2 . . Kills | -11 -10 -10 -9 -9 -9 -8 -8 -7 -7 -7 -7 -6 -6 -6 ------- Run | Yrd Mat Min Mat Min Exi Min Mat Fac Low Low Dat Pro Fac Gar Combat Hostiles Destroyed 114 | . 3 2 11 3 . . 22 26 16 2 . 13 8 8 Melee 13 | . . . . . . . 5 1 2 . . 2 2 1 Guns 78 | . 3 2 11 3 . . 11 24 10 2 . 1 5 6 Cannons 8 | . . . . . . . 6 . . . . . 1 1 AOE 10 | . . . . . . . . . . . . 10 . . Classes Destroyed 17 | . 2 2 5 1 . . 5 2 . . . . . . Worker 9 | . . 2 . . . . 1 3 . . . . 3 . Builder 7 | . 1 2 1 . . . 1 2 . . . . . . Tunneler 3 | . . 1 . . . . . 1 . . . . 1 . Hauler 4 | . . . 2 . . . 1 1 . . . . . . Recycler 4 | . . . 2 . . . . 1 . . . . 1 . Mechanic 1 | . . . . . . . 1 . . . . . . . Operator 1 | . . . . . . . 1 . . . . . . . Watcher 5 | . . . 3 . . . 1 1 . . . . . . Swarmer 25 | . . . 7 . . . . . 8 . . 5 . 5 Grunt 50 | . 3 2 3 2 . . 13 12 6 1 . 5 . 3 Brawler 3 | . . . . . . . 2 . . . . 1 . . Duelist 5 | . . . . . . . 1 3 . 1 . . . . Protector 1 | . . . . . . . . 1 . . . . . . Sentry 11 | . . . 1 . . . 5 2 1 . . 1 1 . Hunter 7 | . . . . . . . 1 3 . . . . 3 . Programmer 11 | . . . . . . . . 5 1 . . 1 4 . Assembled 1 | . . . . 1 . . . . . . . . . . Best Kill Streak 8 | . 2 3 6 2 . . 6 8 7 2 . 4 2 4 Combat Bots Only 7 | . 2 1 4 2 . . 5 5 7 2 . 4 1 4 Max Kills in Single Turn 3 | . 1 1 2 2 . . 1 2 1 1 . 3 1 2 Gunslinging 1 | . . . . 1 . . . 1 . . . . . . Exploded 3 | . . . . . . . . . . . . 3 . . Melee 1 | . . . . . . . 1 1 1 . . 1 1 1 Uniques/NPCs Destroyed . | . . . . . . . . . . . . . . . Combat | -11 -10 -10 -9 -9 -9 -8 -8 -7 -7 -7 -7 -6 -6 -6 -------- Run | Yrd Mat Min Mat Min Exi Min Mat Fac Low Low Dat Pro Fac Gar Hostile Shots Fired 1366 | . 60 14 82 8 . . 216 152 110 19 . 134 185 386 Missed 364 | . 24 4 24 . . . 55 55 27 6 . 41 32 96 Damage Taken 15901 | . 554 180 592 139 . . 2518 1753 1282 277 . 1652 2188 4766 Core 2098 | . 122 30 119 13 . . 264 145 171 64 . 315 163 692 Absorbed by Shields 107 | . . . . . . . . . . . . . . 107 Redirected to Shielding 95 | . . . . . . . . . . . . . 95 . Regen/Repaired (Parts) 202 | . . . . . . . . 123 . . . . 34 45 Core Remaining (%) 51 | 100 . 39 . . . 67 52 . . . . . . . Volleys Fired 327 | . 23 9 35 7 . . 84 72 25 5 . 14 29 24 Largest 3 | . 2 2 2 2 . . 2 3 2 3 . 3 3 3 Hottest 156 | . 70 40 126 126 . . 138 84 56 84 . 92 89 156 Shots Fired 672 | . 46 18 68 14 . . 136 201 43 15 . 22 62 47 Gun 568 | . 46 18 68 14 . . 73 201 43 15 . 9 45 36 Cannon 91 | . . . . . . . 63 . . . . . 17 11 Launcher 13 | . . . . . . . . . . . . 13 . . Special . | . . . . . . . . . . . . . . . Kinetic 440 | . 34 18 14 . . . . 201 43 15 . 9 62 44 Thermal 192 | . 12 . 30 14 . . 136 . . . . . . . Explosive 13 | . . . . . . . . . . . . 13 . . Electromagnetic 27 | . . . 24 . . . . . . . . . . 3 Robot Hit Streak 13 | . 10 5 10 7 . . 11 13 6 5 . 4 9 10 Robot Miss Streak 24 | . 3 1 7 2 . . 4 9 11 8 . 6 24 15 Penetration Max . | . . . . . . . . . . . . . . . Secondary Targets 13 | . . . 4 1 . . 1 4 1 1 . . . 1 Max Gunslinging Chain 1 | . . . 1 1 . . 1 1 1 1 . . . 1 Shots Hit Robots 582 | . 31 14 46 9 . . 109 178 55 12 . 28 65 35 Core Hits 500 | . 11 8 21 5 . . 39 210 56 18 . 40 58 34 Critical Kills 1 | . . . . . . . . . . . . . . 1 Critical Parts Destroyed 12 | . 1 . . . . . 2 . 7 . . 2 . . Critical Strikes 19 | . 1 . 1 . . . 4 . 7 . . 3 2 1 Burn 2 | . . . . . . . 2 . . . . . . . Destroy 2 | . 1 . . . . . . . . . . . . 1 Corrupt 1 | . . . 1 . . . . . . . . . . . Smash 11 | . . . . . . . 2 . 7 . . 2 . . Sever 3 | . . . . . . . . . . . . 1 2 . Melee Attacks 104 | . . 3 3 . . . 23 8 22 . . 22 23 . Impact 76 | . . 3 3 . . . 23 8 22 . . 17 . . Slashing 28 | . . . . . . . . . . . . 5 23 . Piercing . | . . . . . . . . . . . . . . . Sneak Attacks 12 | . . 2 2 . . . 2 1 . . . . 5 . Combat Hostiles . | . . . . . . . . . . . . . . . Follow-up Attacks 9 | . . . . . . . . . 4 . . 5 . . Damage Inflicted 14562 | 11 361 322 988 154 . . 2872 3609 1271 233 . 2224 1572 945 Guns 7443 | . 361 157 731 154 . . 778 3108 623 233 . 122 630 546 Cannons 1441 | . . . . . . . 1100 . . . . . 204 137 Explosions 1851 | . . . 32 . . . . 243 . . . 1576 . . Melee 3390 | . . 146 225 . . . 960 196 648 . . 526 689 . Ramming 437 | 11 . 19 . . . . 34 62 . . . . 49 262 Kinetic 6148 | . 275 157 146 . . . . 3108 623 233 . 122 834 650 Thermal 2707 | . 86 . 346 154 . . 1878 243 . . . . . . Explosive 1576 | . . . . . . . . . . . . 1576 . . Electromagnetic 304 | . . . 271 . . . . . . . . . . 33 Impact 2595 | . . 146 225 . . . 960 196 648 . . 420 . . Slashing 795 | . . . . . . . . . . . . 106 689 . Piercing . | . . . . . . . . . . . . . . . Highest Corruption 29 | . . 23 . . . . 1 2 19 19 19 29 1 1 Average Corruption 9 | . . 22 . . . . 1 1 10 19 19 19 1 1 Corruption Purged 2 | . . . . . . . . . 2 . . . . . Corruption Blocked . | . . . . . . . . . . . . . . . Effects 197 | . . 5 . . . . 7 31 32 32 6 82 . 2 Message Errors 42 | . . 1 . . . . 1 10 8 4 . 18 . . Matter Fused 43 | . . . . . . . 1 5 9 7 3 17 . 1 Heat Flow Errors 30 | . . 1 . . . . 2 5 4 2 . 16 . . Energy Discharges 29 | . . 1 . . . . 1 4 3 5 . 15 . . Parts Rejected 3 | . . . . . . . . . . 1 . 2 . . Data Loss (minor) 28 | . . 2 . . . . 2 4 3 7 1 8 . 1 Data Loss (major) 8 | . . . . . . . . 1 2 2 . 3 . . Misfires 3 | . . . . . . . . . . 1 . 2 . . Alerts 7 | . . . . . . . . 1 3 1 2 . . . Misdirections 2 | . . . . . . . . . . 1 . 1 . . Weapon Failures 2 | . . . . . . . . 1 . 1 . . . . Overload Shots . | . . . . . . . . . . . . . . . Overflow Damage 1211 | . . 45 101 . . . 343 130 311 . . 102 179 . Projectiles 14 | . . . . . . . 10 4 . . . . . . Explosions 59 | . . . . . . . . 36 . . . 23 . . Melee 1138 | . . 45 101 . . . 333 90 311 . . 79 179 . Knockbacks 30 | . . 2 . . . . 5 2 . . . 2 9 10 Impact 12 | . . 1 . . . . 5 2 . . . 2 1 1 Kinetic 16 | . . . . . . . . . . . . . 8 8 Secondary 2 | . . 1 . . . . . . . . . . . 1 Self-Inflicted Damage 122 | . . 8 . . . . . 33 . . . 81 . . Shots 5 | . . . . . . . . 1 . . . 4 . . Rammed 19 | 8 . 2 . . . . 3 6 . . . . . . Targets Rammed 90 | 8 . 2 . . . . 4 8 . . . . 8 60 Kicked 68 | . . . . . . . . . . . . . 8 60 Crushed 3 | . . . . . . . 1 2 . . . . . . Highest Temperature 499 | . 66 178 66 138 . . 499 275 246 220 . 259 180 380 Average Temperature 93 | . 25 83 19 56 . . 118 50 87 146 . 97 61 165 Received Heat Transfer 4341 | . 246 102 150 45 . . 1278 333 279 45 . 585 48 1230 Effects 10 | . . . . . . . 5 . . . . 3 . 2 Shutdowns 2 | . . . . . . . 1 . . . . . . 1 Energy Bleed 3 | . . . . . . . 2 . . . . . . 1 Interference 5 | . . . . . . . 2 . . . . 3 . . Siege Activations . | . . . . . . . . . . . . . . . Robots Corrupted . | . . . . . . . . . . . . . . . Combat Hostiles . | . . . . . . . . . . . . . . . Parts Fried 13 | . . 1 3 . . . 6 2 1 . . . . . Impact Corruptions 31 | . . 2 1 . . . 12 4 9 . . 3 . . Robots Melted . | . . . . . . . . . . . . . . . Combat Hostiles . | . . . . . . . . . . . . . . . Parts Melted 6 | . . . 2 . . . 4 . . . . . . . Heat Transferred 5034 | . 259 . 814 333 . . 3478 150 . . . . . . Parts Sabotaged . | . . . . . . . . . . . . . . . Parts Stolen . | . . . . . . . . . . . . . . . Parts Stripped . | . . . . . . . . . . . . . . . Power Chain Reactions 1 | . . . 1 . . . . . . . . . . . Alert | -11 -10 -10 -9 -9 -9 -8 -8 -7 -7 -7 -7 -6 -6 -6 ------- Run | Yrd Mat Min Mat Min Exi Min Mat Fac Low Low Dat Pro Fac Gar Peak Influence 451 | . 89 65 184 71 . . 418 451 . . . . 90 86 Initial 189 | . . 30 5 71 . . . 189 . . . . . 46 Average 77 | . 43 23 75 21 . . 137 157 . . . . 25 46 Maximum Alert Level 2 | . . . . . . . 2 2 . . . . . . Low Security (%) 88 | 100 100 100 100 100 . 100 75 65 . . . . 100 100 Level 1 10 | . . . . . . . 20 31 . . . . . . Level 2 1 | . . . . . . . 3 2 . . . . . . Level 3 . | . . . . . . . . . . . . . . . Level 4 . | . . . . . . . . . . . . . . . Level 5 . | . . . . . . . . . . . . . . . High Security . | . . . . . . . . . . . . . . . Max Security . | . . . . . . . . . . . . . . . Squads Dispatched 25 | . 3 . 2 1 . . 5 9 . . . . 5 . Investigation 6 | . 2 . 1 . . . 1 1 . . . . 1 . Extermination 9 | . . . . . . . . 5 . . . . 4 . Reinforcement 8 | . 1 . 1 . . . 4 2 . . . . . . Assault 2 | . . . . 1 . . . 1 . . . . . . Garrison . | . . . . . . . . . . . . . . . Intercept . | . . . . . . . . . . . . . . . Searches Triggered . | . . . . . . . . . . . . . . . Construction Impeded 3 | . . . . . . . 2 1 . . . . . . Haulers Reinforced 1 | . . . . . . . . 1 . . . . . . Active Scanning Responses . | . . . . . . . . . . . . . . . Cargo Convoy Interrupts . | . . . . . . . . . . . . . . . Stealth | -11 -10 -10 -9 -9 -9 -8 -8 -7 -7 -7 -7 -6 -6 -6 --------- Run | Yrd Mat Min Mat Min Exi Min Mat Fac Low Low Dat Pro Fac Gar Distress Signals 7 | . . . 3 . . . 4 . . . . . . . Communications Jammed . | . . . . . . . . . . . . . . . Distress Signals . | . . . . . . . . . . . . . . . Times Spotted 201 | . 9 3 18 9 . . 40 35 19 4 . 20 15 29 Peak Tracking Total 11 | . 5 2 5 11 . . 7 5 7 3 . 7 3 10 Tactical Retreats 11 | . . 1 . 1 . . 2 1 2 . . 1 . 3 Traps | -11 -10 -10 -9 -9 -9 -8 -8 -7 -7 -7 -7 -6 -6 -6 ------- Run | Yrd Mat Min Mat Min Exi Min Mat Fac Low Low Dat Pro Fac Gar Traps Triggered 5 | . 2 . 1 . . . . . . . . . 1 1 Indirectly . | . . . . . . . . . . . . . . . Trap Hack Attempts . | . . . . . . . . . . . . . . . Triggered . | . . . . . . . . . . . . . . . Disarmed . | . . . . . . . . . . . . . . . Reprogrammed . | . . . . . . . . . . . . . . . Reused . | . . . . . . . . . . . . . . . Traps Extracted . | . . . . . . . . . . . . . . . Installed . | . . . . . . . . . . . . . . . Triggered . | . . . . . . . . . . . . . . . Machines | -11 -10 -10 -9 -9 -9 -8 -8 -7 -7 -7 -7 -6 -6 -6 ---------- Run | Yrd Mat Min Mat Min Exi Min Mat Fac Low Low Dat Pro Fac Gar Machines Disabled 5 | . . . 1 . . . . 3 . . . 1 . . Max in Single Turn 3 | . . . 1 . . . . 3 . . . 1 . . Machines Repaired . | . . . . . . . . . . . . . . . Machines Dismantled . | . . . . . . . . . . . . . . . Machines Sabotaged . | . . . . . . . . . . . . . . . Overloaded Fab Kills . | . . . . . . . . . . . . . . . Hacking | -11 -10 -10 -9 -9 -9 -8 -8 -7 -7 -7 -7 -6 -6 -6 --------- Run | Yrd Mat Min Mat Min Exi Min Mat Fac Low Low Dat Pro Fac Gar Machines Accessed 29 | . 2 2 . . . . 3 7 1 . 4 1 9 . Terminals 17 | . 2 1 . . . . 3 4 1 . . . 6 . Fabricators 1 | . . . . . . . . . . . . . 1 . Repair Stations 2 | . . . . . . . . 2 . . . . . . Recycling Units 1 | . . . . . . . . . . . . . 1 . Scanalyzers . | . . . . . . . . . . . . . . . Garrison Access 2 | . . . . . . . . 1 . . . . 1 . Total Hacks 90 | . 4 3 . . . . 7 15 7 . 29 1 24 . Successful 64 | . 2 2 . . . . 5 4 7 . 29 1 14 . Failed 26 | . 2 1 . . . . 2 11 . . . . 10 . Catastrophic 6 | . 1 . . . . . . 4 . . . . 1 . Database Lockouts . | . . . . . . . . . . . . . . . Manual 13 | . 3 . . . . . 4 5 . . . . 1 . Terminals 45 | . 4 2 . . . . 7 8 7 . . . 17 . Fabricators 4 | . . . . . . . . . . . . . 4 . Repair Stations 6 | . . . . . . . . 6 . . . . . . Recycling Units 2 | . . . . . . . . . . . . . 2 . Scanalyzers . | . . . . . . . . . . . . . . . Garrison Access 2 | . . . . . . . . 1 . . . . 1 . Terminal Hacks 58 | . 2 2 . . . . 5 2 7 . 29 1 10 . Record 23 | . . 1 . . . . . . 7 . 11 1 3 . Part Schematic 11 | . . . . . . . . . . . 11 . . . Robot Schematic 4 | . . . . . . . . . . . 4 . . . Prototype ID Bank 5 | . . . . . . . 1 . . . 3 . 1 . Open Door 1 | . . 1 . . . . . . . . . . . . Open DSF 1 | . . . . . . . . . . . . . 1 . Level Access Points 2 | . 1 . . . . . 1 . . . . . . . Branch Access Points 2 | . . . . . . . 1 1 . . . . . . Terminal Index 1 | . . . . . . . . . . . . . 1 . Repair Station Index 1 | . . . . . . . . 1 . . . . . . Alert Level 2 | . . . . . . . 1 . . . . . 1 . Locate Traps 3 | . . . . . . . 1 . . . . . 2 . Reinforcement Status 1 | . . . . . . . . . . . . . 1 . Zone Layout 1 | . 1 . . . . . . . . . . . . . Fabricator Hacks 3 | . . . . . . . . . . . . . 3 . Network Status 1 | . . . . . . . . . . . . . 1 . Load Schematic 1 | . . . . . . . . . . . . . 1 . Build 1 | . . . . . . . . . . . . . 1 . Repair Station Hacks 2 | . . . . . . . . 2 . . . . . . Scan Component 1 | . . . . . . . . 1 . . . . . . Repair 1 | . . . . . . . . 1 . . . . . . Recycling Unit Hacks . | . . . . . . . . . . . . . . . Scanalyzer . | . . . . . . . . . . . . . . . Garrison Access Hacks 1 | . . . . . . . . . . . . . 1 . Unlock Access 1 | . . . . . . . . . . . . . 1 . Unauthorized Hacks . | . . . . . . . . . . . . . . . Terminals . | . . . . . . . . . . . . . . . Fabricators . | . . . . . . . . . . . . . . . Repair Stations . | . . . . . . . . . . . . . . . Recycling Units . | . . . . . . . . . . . . . . . Scanalyzers . | . . . . . . . . . . . . . . . Garrison Access . | . . . . . . . . . . . . . . . Data Cores Recovered . | . . . . . . . . . . . . . . . Used . | . . . . . . . . . . . . . . . Hacking Detections 20 | . 2 1 . . . . 3 6 1 . . . 7 . Full Trace Events 4 | . . . . . . . 1 1 1 . . . 1 . Feedback Events . | . . . . . . . . . . . . . . . Feedback Blocked . | . . . . . . . . . . . . . . . Robot Schematics Acquired 4 | . . . . . . . . . . . 4 . . . Robots Built . | . . . . . . . . . . . . . . . Authchips . | . . . . . . . . . . . . . . . Time . | . . . . . . . . . . . . . . . Total Robot Build Rating . | . . . . . . . . . . . . . . . Part Schematics Acquired 11 | . . . . . . . . . . . 11 . . . Parts Built 1 | . . . . . . . . . . . . . 1 . Authchips . | . . . . . . . . . . . . . . . Time 152 | . . . . . . . . . . . . . 152 . Total Part Build Rating 5 | . . . . . . . . . . . . . 5 . Parts Repaired 1 | . . . . . . . . 1 . . . . . . Time 26 | . . . . . . . . 26 . . . . . . Parts Recycled . | . . . . . . . . . . . . . . . Recycled Matter . | . . . . . . . . . . . . . . . Retrieved Matter . | . . . . . . . . . . . . . . . Retrieved Components . | . . . . . . . . . . . . . . . Parts Scanalyzed . | . . . . . . . . . . . . . . . Part Schematics Acquired . | . . . . . . . . . . . . . . . Parts Damaged . | . . . . . . . . . . . . . . . Bothacking | -11 -10 -10 -9 -9 -9 -8 -8 -7 -7 -7 -7 -6 -6 -6 ------------ Run | Yrd Mat Min Mat Min Exi Min Mat Fac Low Low Dat Pro Fac Gar Used RIF Installer . | . . . . . . . . . . . . . . . Robots Hacked . | . . . . . . . . . . . . . . . Non-combat . | . . . . . . . . . . . . . . . Combat . | . . . . . . . . . . . . . . . Robot Hacks Applied . | . . . . . . . . . . . . . . . Relay Couplers Released . | . . . . . . . . . . . . . . . Fabnet Peak Effective % . | . . . . . . . . . . . . . . . Robots Rewired . | . . . . . . . . . . . . . . . Allies Hacked . | . . . . . . . . . . . . . . . Hacks Repelled . | . . . . . . . . . . . . . . . Allies | -11 -10 -10 -9 -9 -9 -8 -8 -7 -7 -7 -7 -6 -6 -6 -------- Run | Yrd Mat Min Mat Min Exi Min Mat Fac Low Low Dat Pro Fac Gar Total Allies 6 | . . 1 . 4 . . . . . . . 1 . . Largest Group 3 | . . 1 . 3 1 1 1 . . . . 1 . . Highest-Rated Group 96 | . . 31 . 40 31 31 31 . . . . 96 . . Highest-Rated Ally 96 | . . 31 . 31 31 31 31 . . . . 96 . . Total Orders . | . . . . . . . . . . . . . . . Ally Attacks 49 | . . . . 13 . . 14 . . . . 22 . . Total Damage 1040 | . . . . 115 . . 144 . . . . 781 . . Kills 10 | . . . . 2 . . 2 . . . . 6 . . Allies Corrupted . | . . . . . . . . . . . . . . . Allies Melted . | . . . . . . . . . . . . . . . Intel | -11 -10 -10 -9 -9 -9 -8 -8 -7 -7 -7 -7 -6 -6 -6 ------- Run | Yrd Mat Min Mat Min Exi Min Mat Fac Low Low Dat Pro Fac Gar Robot Analysis Total . | . . . . . . . . . . . . . . . Derelict Logs Recovered 6 | . . 1 . 2 . . . . 1 2 . . . . Drone Launches . | . . . . . . . . . . . . . . . Drone Recoveries . | . . . . . . . . . . . . . . . Exploration | -11 -10 -10 -9 -9 -9 -8 -8 -7 -7 -7 -7 -6 -6 -6 ------------- Run | Yrd Mat Min Mat Min Exi Min Mat Fac Low Low Dat Pro Fac Gar Turns Passed 16527 | 534 360 1164 1180 966 457 135 1520 2971 1486 659 124 2087 2521 363 Spaces Moved 7578 | 114 164 696 458 388 153 25 386 1481 846 444 95 1086 1114 128 Core 3 | 2 . . . . . . . . . . . 1 . . Treads 3984 | 112 164 233 403 388 153 25 386 1481 638 1 . . . . Legs 2008 | . . . . . . . . . . . . 766 1114 128 Wheels 1583 | . . 463 55 . . . . . 208 443 95 319 . . Hover . | . . . . . . . . . . . . . . . Flight . | . . . . . . . . . . . . . . . Fastest Speed 50 | 50 160 110 110 240 240 560 240 160 130 130 130 105 120 120 Average Speed 184 | 158 173 153 224 240 298 560 298 162 153 138 130 174 196 149 Slowest Speed 1100 | 160 240 320 240 240 560 560 320 320 240 320 130 1100 260 190 Overloaded Moves . | . . . . . . . . . . . . . . . Propulsion Burnouts . | . . . . . . . . . . . . . . . Robots Hopped . | . . . . . . . . . . . . . . . Cave-ins Triggered . | . . . . . . . . . . . . . . . Exploration Rate (%) 49 | 10 31 98 36 71 50 14 37 25 80 62 75 96 25 26 Regions Visited 14 Branch Regions 8 Pre-discovered Areas 2 | . . 1 . . . . . . . . 1 . . . Known Exits Taken 12 | . . 1 1 1 1 1 1 1 1 1 1 1 1 . Unknown Exits Taken 2 | 1 1 . . . . . . . . . . . . . Scrap Searched 14 | . . 1 . 2 . . . . 7 2 . 2 . . Spaces Dug 8 | . . . . . . . 1 5 . . . . 2 . Terrain Destroyed 170 | . . . 2 . . . 15 28 . . . 123 2 . Melee 7 | . . . . . . . . 5 . . . . 2 . Projectile 15 | . . . . . . . 15 . . . . . . . AOE 148 | . . . 2 . . . . 23 . . . 123 . . Terrain Rammed . | . . . . . . . . . . . . . . . Walls Destroyed . | . . . . . . . . . . . . . . . Machines Disabled . | . . . . . . . . . . . . . . . Actions | -11 -10 -10 -9 -9 -9 -8 -8 -7 -7 -7 -7 -6 -6 -6 --------- Run | Yrd Mat Min Mat Min Exi Min Mat Fac Low Low Dat Pro Fac Gar Total 9353 | 460 195 765 546 411 158 24 571 1864 959 476 96 1228 1361 239 Wait 906 | 328 . 41 8 7 . . 16 215 56 14 . 82 136 3 Move 7564 | 113 163 695 457 387 152 24 385 1480 845 443 94 1085 1113 128 Hop . | . . . . . . . . . . . . . . . Pick Up 100 | 5 1 5 13 3 1 . 22 30 1 2 . 1 16 . Fast Attach 66 | 6 4 4 5 . 2 . 2 11 5 2 . 9 9 7 Attach 65 | . . 2 6 . . . 10 9 6 3 . 13 6 10 Detach 28 | . 2 5 3 . 1 . 1 3 1 2 2 7 1 . Swap 44 | . 2 . 4 3 . . 12 10 1 3 . . 7 2 Drop 66 | . . . 13 4 2 . 12 18 2 2 . . 13 . Fire 327 | . 23 9 35 7 . . 84 72 25 5 . 14 29 24 Melee 92 | . . 2 2 . . . 23 8 17 . . 17 23 . Ram 1 | . . 1 . . . . . . . . . . . . Kick 68 | . . . . . . . . . . . . . 8 60 Crush 21 | 8 . 1 . . . . 4 8 . . . . . . Escape Stasis 5 | . . . . . . . . . . . . . . 5 Rewire . | . . . . . . . . . . . . . . . Trap . | . . . . . . . . . . . . . . . Miscellaneous . | . . . . . . . . . . . . . . . Route ------- -11/Scrapyard -10/Materials (discovered 4 exits: Mat x3 / *Min) -10/Mines (discovered 2 exits: *Mat x2) -9/Materials (discovered 3 exits: *Mat / *Min x2) -9/Mines (discovered 2 exits: *Mat / *Exi) -9/Exiles -8/Mines -8/Materials (discovered 5 exits: *Fac x3 / *Sto x2) -7/Factory (discovered 3 exits: *Fac / *Low x2) -7/Lower Caves -7/Lower Caves (discovered 2 exits: *Fac / *Dat) -7/Data Miner -6/Proximity Caves -6/Factory (discovered 2 exits: Fac / Gar) -6/Garrison History --------- Turn | Location | Event 25 | -11/Scrapyard | Discovered new exit (range 16) 535 | -11/Scrapyard | Entered Materials 536 | -10/Materials | Build established: Mutant 611 | -10/Materials | Identified exit to Materials 865 | -10/Materials | Discovered new exit (range 7) 895 | -10/Materials | Entered Mines 927 | -10/Mines | Met a Derelict bent on vengeance 970 | -10/Mines | Received a Mining Laser from a helpful Derelict 1428 | -10/Mines | Learned location of Storage (-8) 1442 | -10/Mines | Core integrity fell below 50% 1544 | -10/Mines | Discovered exit to Materials (range 5) 1619 | -10/Mines | Discovered exit to Materials (range 9) 1834 | -10/Mines | Met a Derelict who couldn't figure out how to use a Trap Extractor 1853 | -10/Mines | System corruption reached 10% 2059 | -10/Mines | Entered Materials 2059 | -9/Materials | Evolved 2 slots: Utility x2 2167 | -9/Materials | Discovered new exit (range 12) 2700 | -9/Materials | Discovered new exit (range 12) 2772 | -9/Materials | Identified exit to Mines 2783 | -9/Materials | Build established: Scavenger-Mutant 2890 | -9/Materials | Discovered new exit (range 10) 2909 | -9/Materials | Identified exit to Materials 3239 | -9/Materials | Entered Mines 3290 | -9/Mines | Assisted by bots powering up and referring to "LRC-V3" 3371 | -9/Mines | Assembled infested the area 3374 | -9/Mines | Learned location of 1 exit from Materials 3376 | -9/Mines | Assisted by a Guerilla fighting off Assembled 3435 | -9/Mines | Lost 4 allies 3501 | -9/Mines | Joined a pair of Derelicts in attacking an 0b10 outpost 4122 | -9/Mines | Learned location of 1 exit from Materials 4150 | -9/Mines | Discovered exit to Materials (range 11) 4156 | -9/Mines | Met a Derelict testing a Signal Generator 4175 | -9/Mines | Found Signal Generator 4195 | -9/Mines | Deemed a non-threat by the Exiles lab entrance 4195 | -9/Mines | Discovered new exit (range 5) 4202 | -9/Mines | Identified exit to Exiles 4205 | -9/Mines | Entered Exiles 4205 | -9/Exiles | Accompanied by 1 ally 4263 | -9/Exiles | Met 8R-AWN 4301 | -9/Exiles | Met EX-HEX 4397 | -9/Exiles | Met EX-DEC 4601 | -9/Exiles | Discovered new exit (range 14) 4657 | -9/Exiles | Identified exit to Mines 4662 | -9/Exiles | Entered Mines 4662 | -8/Mines | Accompanied by 1 ally 4741 | -8/Mines | Discovered exit to Materials (range 10) 4797 | -8/Mines | Entered Materials 4797 | -8/Materials | Accompanied by 1 ally 4797 | -8/Materials | Evolved 2 slots: Propulsion x2 4798 | -8/Materials | Identified exit to Storage 4798 | -8/Materials | Identified exit to Factory 4819 | -8/Materials | Build established: Hauler-Mutant 5332 | -8/Materials | Discovered exit to Storage (range 10) 6317 | -8/Materials | Entered Factory 6317 | -7/Factory | Evolved 2 slots: Power x1, Weapon x1 6698 | -7/Factory | Build established: Tank 7046 | -7/Factory | Build established: Scavenger-Tank 8457 | -7/Factory | Repaired Lgt. Treads 8827 | -7/Factory | Identified exit to Lower Caves 8850 | -7/Factory | Discovered new exit (range 8) 9083 | -7/Factory | Build established: Scavenger-Mutant 9288 | -7/Factory | Entered Lower Caves 10073 | -7/Lower Caves | Attracted the attention of an 0b10 base 10147 | -7/Lower Caves | System corruption reached 10% 10150 | -7/Lower Caves | Destroyed 7 combat bots 10154 | -7/Lower Caves | Learned Armory trap positions 10154 | -7/Lower Caves | Learned Factory emergency access door positions 10154 | -7/Lower Caves | Learned Armory stockpile data 10154 | -7/Lower Caves | Learned Factory garrison access intel 10154 | -7/Lower Caves | Learned Extension garrison access intel 10156 | -7/Lower Caves | Lost 6 parts (1p2n2u1w) 10521 | -7/Lower Caves | Learned Factory emergency access door positions 10526 | -7/Lower Caves | Lost 5 parts (3n1u1w) 10560 | -7/Lower Caves | Discovered new exit (range 6) 10596 | -7/Lower Caves | Identified exit to Lower Caves 10774 | -7/Lower Caves | Entered another Lower Caves area 10779 | -7/Lower Caves | Discovered new exit (range 4) 10783 | -7/Lower Caves | Identified exit to Factory 10796 | -7/Lower Caves | Build established: Mutant 11018 | -7/Lower Caves | Core integrity fell below 50% 11203 | -7/Lower Caves | Identified exit to Data Miner 11319 | -7/Lower Caves | Build established: Scavenger-Tank 11347 | -7/Lower Caves | Encountered a Warlord checkpoint 11388 | -7/Lower Caves | Spotted B-75 Beast 11419 | -7/Lower Caves | Learned 12 Factory zone layouts 11433 | -7/Lower Caves | Entered Data Miner 11433 | -7/Data Miner | Discovered new exit (range 7) 11440 | -7/Data Miner | Identified exit to Proximity Caves 11458 | -7/Data Miner | Met Data Miner 11506 | -7/Data Miner | Learned location of Section 7 (-3) 11506 | -7/Data Miner | Acquired the access code to Warlord's prototype stash 11528 | -7/Data Miner | Received God Mode back door access code from Data Miner 11557 | -7/Data Miner | Entered Proximity Caves 11693 | -6/Proximity Caves | Build established: Scavenger-Mutant 11777 | -6/Proximity Caves | Escorted by Enhanced Grunt 11830 | -6/Proximity Caves | Lost 4 parts (1p2n1u) 11944 | -6/Proximity Caves | Core integrity fell below 20% 12000 | -6/Proximity Caves | Lost 4 parts (1p1n1u1w) 12075 | -6/Proximity Caves | Attracted the attention of an 0b10 checkpoint 12128 | -6/Proximity Caves | Lost 3 parts (1n1u1w) 12147 | -6/Proximity Caves | Build established: Mutant 12807 | -6/Proximity Caves | Spotted B-75 Beast 13502 | -6/Proximity Caves | Discovered exit to Factory (range 4) 13509 | -6/Proximity Caves | Build established: Scavenger-Skirmisher 13561 | -6/Proximity Caves | Found Alien Artifact 13561 | -6/Proximity Caves | Identified Dimensional Node Initializer 13561 | -6/Proximity Caves | Initialized slip node 13644 | -6/Proximity Caves | Entered Factory 13644 | -6/Factory | Evolved 2 slots: Utility x2 13645 | -6/Factory | Identified exit to Factory 13647 | -6/Factory | Loaded intel: 4 garrison access locations 15359 | -6/Factory | Lost 3 parts (1p1u1w) 15412 | -6/Factory | Fabricated Lgt. Regenerative Plating (x1) 15661 | -6/Factory | Build established: Scavenger-Assassin 16164 | -6/Factory | Identified exit to Garrison 16165 | -6/Factory | Entered Garrison 16236 | -6/Garrison | Triggered checkpoint 16288 | -6/Garrison | Triggered checkpoint 16334 | -6/Garrison | Core integrity fell below 50% 16427 | -6/Garrison | Lost 19 parts (2p4n3u10w) 16484 | -6/Garrison | Triggered checkpoint 16499 | -6/Garrison | Core integrity fell below 20% 16528 | -6/Garrison | Destroyed by S-27 Virus with Autogun Last Messages --------------- 16497_ Kicked S-27 Virus. 16501_ Fission Core destroyed. 16502_ Kicked S-27 Virus out of the way. 16503_ Kicked S-27 Virus. 16507_ Kicked S-27 Virus out of the way. 16508_ Kicked S-27 Virus. 16509_ Kicked S-27 Virus out of the way. 16511_ S-27 Virus destroyed. 16513_ Kicked S-27 Virus out of the way. 16514_ Kicked S-27 Virus. 16515_ S-27 Virus destroyed. 16515_ Kicked S-27 Virus. 16517_ Arm. Leg destroyed. 16517_ Kicked S-27 Virus out of the way. 16520_ Kicked G-50 Soldier. 16522_ Kicked G-50 Soldier out of the way. 16523_ Hcp. Storage Unit destroyed. 16523_ Kicked S-27 Virus out of the way. 16526_ Kicked S-27 Virus. 16527_ Kicked S-27 Virus out of the way. Map ----- +----------------------------------------------------+ | ????????????????????????????# ## #???# =#??####?? | | ????????????????????????????# ## #???# #? #?? | | ????????????????????????????# ## #??## ## ## | | ????????????????????????????# #######* | | ????????????????????????????# | | ????????????????????????????# | | ????????????????????????????########## ## ## | | ???????????????????????????????????### ## ^ ## | | ???????????????????????????????????# | | ???????????????????????????????????# | | ???????????????????????????????????# | | ???????????????????????????????????# | | ???????????????????????????????????### ## ## | | ???????????????????????????########### ## ## | | ???????????????????????????# | | ???????????????????????????# | | ???????????????????????????# ######## | | ???????????????????????????# #??????## ##""""## | | ???????????????????????????# #???????? #???????? | | ?????????????????########### #???????? #???????? | | ?????????????????# #???????? #???????? | | ???????????????### ######### #???????? #???????? | | ???????????????#= ######### #???????? #???????? | | ???????????????#%= + ?%%## #???????? #???????? | | ???????????????#[ %#????#s## ???????? #???????? | | ???????????????### #????#@## ???????? #???????? | | ?????????????????# #????#!## ###???????##???????? | | ?????????????????# #????#!## #??????????????????? | | ?????????????????# ######s## #??????????????????? | | ?????????????????# [%%[%+%!# #??????????????????? | | ?????????????????### !##### #??????????????????? | | ??????????????????#"""""#??? #??????????????????? | | ??????????????????#######??? ???????????????????? | | ???????????????????????????? ???????????????????? | | ???????????????????????????? ???????????????????? | | ?????????????????????????????????????????????????? | | ?????????????????????????????????????????????????? | | ?????????????????????????????????????????????????? | | ?????????????????????????????????????????????????? | | ?????????????????????????????????????????????????? | | ?????????????????????????????????????????????????? | | ?????????????????????????????????????????????????? | | ?????????????????????????????????????????????????? | | ?????????????????????????????????????????????????? | | ?????????????????????????????????????????????????? | | ?????????????????????????????????????????????????? | | ?????????????????????????????????????????????????? | | ?????????????????????????????????????????????????? | | ?????????????????????????????????????????????????? | | ?????????????????????????????????????????????????? | +----------------------------------------------------+ Best States ------------- Heat Dissipation 113 Energy Generation 34 Energy Capacity 530 Matter Stores 300 Matter Capacity 300 Sight Range 16 Robot Scan Range 15 Terrain Scan Density 10 Armor Coverage 375 Propulsion Shielding 66 Evasion (%) 55 Recoil Reduction 4 Offensive Hacking 10 Item Schematics ----------------- Combat Drone Bay | -7/Data Miner | Free Lgt. Regenerative Plating | -7/Data Miner | Free Cld. Aerolev Unit | -7/Data Miner | Free Gravity Neutralizer | -7/Data Miner | Free Force Rifle | -7/Data Miner | Free Linear Gravjet | -7/Data Miner | Free Imp. Transmission Jammer | -7/Data Miner | Free Enh. Gauss Cannon | -7/Data Miner | Free Imp. Reaction Control System | -7/Data Miner | Free Imp. Remote Datajack | -7/Data Miner | Free Nanoactuators | -7/Data Miner | Free Robot Schematics ------------------ B-48 Gladiator | -7/Data Miner | Free C-17 Slicer | -7/Data Miner | Free M-22 Extractor | -7/Data Miner | Free S-27 Virus | -7/Data Miner | Free Fabricated ------------ Lgt. Regenerative Plating | x1 | -6/Factory Alien Tech Used ----------------- Dimensional Node Initializer Achievements -------------- More Dakka Please Packrat Tank The Oracle Challenges ------------ None Game ------ Seed GlidesysFlyingRedistributor Manual? 0 Play Time 02:01:08 Cumulative 32.2 hours Start 2024.05.16 @ 13:55:43 End 2024.05.16 @ 16:01:40 Sessions 1 Manual Loads 0 Difficulty Rogue Special Mode None Game No. 24 Rogue 24 Adventurer 0 Explorer 0 Win Type - Total 1 Types 1/0/0/0/0/0/0/0/0 Lore% 27 Gallery% 29 Achievement% 30 Wizard Run 0 Options --------- Layout 1 ASCII 0 Keyboard 1 Movement Arrows Keybinds 0 Fullscreen 1 Font 32/SmallcapsGlow Map View 50x35 Zoom Use 0% Tactical HUD 1 Map Filters NONE Filters NONE Steam 0 RUN: aaa7f9d0-f54e-4288-abaf-86004562d859